bitfinex-derivatives/quotes_ETHF0:USTF0_20250606
["timestamp","ask_amount","ask_price","bid_price","bid_amount"]
[1749179925679,0.82098,2435.2,2435.1,8.3338]
[1749179926273,0.82096,2435.3,2435.1,8.3338]
[1749179926469,0.82096,2435.3,2435.1,5.126]
[1749179926674,1.3878,2435.5,2435.1,5.126]
[1749179926876,0.82096,2435.3,2435.1,5.126]
[1749179927777,0.82096,2435.3,2435.1,8.3338]
[1749179928480,0.82097,2435.2,2435.1,8.3338]
[1749179930081,2.79997,2435.2,2435.1,5.126]
[1749179930575,0.82107,2434.9,2434.8,3.2078]
[1749179930781,1.2925,2435.1,2434.5,3.2078]
[1749179930975,0.82114,2434.7,2434.6,5.126]
[1749179931175,0.82117,2434.6,2434.5,3.2078]
[1749179931377,0.82117,2434.6,2434.5,8.3338]
[1749179932175,0.82117,2434.6,2434.5,3.2078]
[1749179932382,0.82117,2434.6,2434.5,8.3338]
[1749179936184,0.82118,2434.6,2434.5,8.3338]
[1749179937790,0.82118,2434.6,2434.5,3.2078]
[1749179937991,0.82118,2434.6,2434.5,8.3338]
[1749179944093,0.82121,2434.5,2434.4,0.64026295]
[1749179944397,0.82121,2434.5,2434.4,5.76526295]
[1749179947598,1.7764,2434.7,2434.4,10.76526295]
[1749179947799,1.7764,2434.7,2434.6,0.82117]
[1749179948001,1.7764,2434.7,2434.5,4.6039]
[1749179948202,1.7764,2434.7,2434.6,2.0024]
[1749179948203,2.59754,2434.7,2434.6,2.0024]
[1749179948501,1.7764,2434.7,2434.6,2.0024]
[1749179948695,2.59754,2434.7,2434.6,2.0024]
[1749179949301,1.7764,2434.7,2434.6,2.0024]
[1749179949501,1.0604,2434.9,2434.6,7.0024]
[1749179949701,0.82098,2435.2,2434.9,0.82106]
[1749179949897,0.82098,2435.2,2435.1,3.2078]
[1749179950403,0.82098,2435.2,2435.1,3.8811]
[1749179953693,0.82098,2435.2,2435.1,3.2078]
[1749179953898,0.82111,2434.8,2434.7,3.2078]
[1749179954206,0.82111,2434.8,2434.7,8.3328]
[1749179955695,0.82111,2434.8,2434.7,3.2078]
[1749179955903,0.82111,2434.8,2434.7,8.3318]
[1749179956506,0.82111,2434.8,2434.7,3.2078]
[1749179956700,3.53089288,2434.8,2434.7,8.3318]
[1749179960206,3.53089288,2434.8,2434.7,5.124]
[1749179961604,3.52920302,2434.8,2434.7,5.124]
[1749179964706,0.82116,2434.6,2434.5,3.2078]
[1749179964912,0.82116,2434.6,2434.5,8.3328]
[1749179972010,0.82115,2434.7,2434.5,8.3328]
[1749179972210,0.82116,2434.6,2434.5,9.6601]
[1749179974110,0.7383,2434.8,2434.5,10.48129]
[1749179974312,0.7383,2434.8,2434.6,0.82116]
[1749179974606,1.5594,2434.8,2434.5,10.48127]
[1749179975014,1.5594,2434.8,2434.6,0.82115]
[1749179975315,1.5594,2434.8,2434.5,10.48127]
[1749179975515,1.5594,2434.8,2434.6,0.82116]
[1749179975915,1.5594,2434.8,2434.7,0.6348]
[1749179976212,0.82116,2434.6,2434.5,9.2408]
[1749179976415,0.82115,2434.7,2434.5,10.06199]
[1749179976619,0.82115,2434.7,2434.5,9.2408]
[1749179977318,0.82115,2434.7,2434.5,10.06199]
[1749179977613,0.82115,2434.7,2434.5,4.93699]
[1749179977813,0.82114,2434.7,2434.6,5.121]
[1749179981016,1.55942,2434.8,2434.6,5.121]
[1749179981420,0.7383,2434.8,2434.6,5.121]
[1749179982021,0.82116,2434.6,2434.5,4.1158]
[1749179982221,0.82116,2434.6,2434.5,8.3288]
[1749179982721,0.82115,2434.7,2434.5,9.14999]
[1749179982922,0.82115,2434.7,2434.5,8.3288]
[1749179983122,0.82115,2434.7,2434.5,9.14998]
[1749179984422,0.7383,2434.8,2434.6,5.121]
[1749179984726,2.14518557,2434.7,2434.6,5.121]
[1749179985825,1.32403557,2434.7,2434.6,5.121]
[1749179986028,2.14516557,2434.7,2434.6,5.121]
[1749179986227,1.32403557,2434.7,2434.6,5.121]
[1749179986528,1.32403557,2434.7,2434.6,5.94216]
[1749179986727,0.7383,2434.8,2434.6,5.121]
[1749179986928,1.5594,2434.8,2434.6,5.121]
[1749179987127,0.7383,2434.8,2434.7,0.82113]
[1749179987330,2.06253311,2434.8,2434.7,0.82113]
[1749179987628,2.06253311,2434.8,2434.7,1.48873]
[1749179988728,0.7383,2434.8,2434.7,1.48873]
[1749179989926,0.4225,2435.0,2434.7,1.48873]
[1749179990228,1.24353,2435.0,2434.9,3.2078]
[1749179990427,2.56767685,2435.0,2434.9,3.2078]
[1749179990831,3.96637685,2435.0,2434.9,3.2078]
[1749179991029,3.96637685,2435.0,2434.9,8.3278]
[1749179991220,3.14534685,2435.0,2434.9,8.3278]
[1749179993533,3.14534685,2435.0,2434.9,9.14886]
[1749179993731,3.14534685,2435.0,2434.9,8.3278]
[1749179993932,3.14534685,2435.0,2434.9,9.14886]
[1749179994132,3.14501649,2435.0,2434.9,9.14886]
[1749179994530,0.6604,2435.1,2435.0,0.82103]
[1749180000140,1.3921,2435.4,2435.3,0.82093]
[1749180000339,1.3921,2435.4,2435.3,5.94093]
[1749180000937,0.6436,2435.5,2435.4,0.82089]
[1749180006649,0.6436,2435.5,2435.4,4.02869]
[1749180007350,0.7379,2435.6,2435.5,0.82086]
[1749180007553,2.04803472,2435.6,2435.5,0.82086]
[1749180008254,0.7379,2435.6,2435.5,0.82086]
[1749180014259,0.82086,2435.5,2435.4,8.3188]
[1749180014459,0.82092,2435.4,2435.3,5.111]
[1749180014661,2.13053845,2435.4,2435.2,24.832]
[1749180014964,3.38961845,2435.3,2435.2,24.832]
[1749180015256,4.21054845,2435.3,2435.2,24.832]
[1749180015452,0.82096,2435.2,2434.9,0.82104]
[1749180015650,2.13061845,2435.1,2435.0,5.111]
[1749180016055,0.82103,2435.0,2434.9,5.111]
[1749180016255,4.16364845,2435.0,2434.8,5.111]
[1749180016457,2.81267845,2434.9,2434.8,5.111]
[1749180016658,3.37441845,2434.9,2434.8,5.111]
[1749180017864,0.82111,2434.8,2434.7,5.112]
[1749180018056,3.44792549,2434.8,2434.7,5.112]
[1749180018266,3.44792549,2434.8,2434.5,25.65219]
[1749180018466,1.3166,2434.8,2434.6,5.93316]
[1749180018662,2.13771,2434.8,2434.6,5.93316]
[1749180018863,2.13771,2434.8,2434.6,5.112]
[1749180019061,2.13771,2434.8,2434.6,5.93316]
[1749180019658,2.87571,2434.8,2434.6,5.93316]
[1749180020069,2.0546,2434.8,2434.6,5.112]
[1749180020571,2.87572,2434.8,2434.6,5.112]
[1749180021159,0.82113,2434.7,2434.6,5.112]
[1749180021363,1.3236,2434.7,2434.6,5.112]
[1749180022669,2.14473,2434.7,2434.6,5.112]
[1749180024869,0.82113,2434.7,2434.6,5.112]
[1749180025170,0.82116,2434.6,2434.5,24.831]
[1749180025369,0.8212,2434.5,2434.4,3.21396295]
[1749180025561,2.1688,2434.5,2434.4,0.00616295]
[1749180025764,3.47387212,2434.5,2434.4,0.00616295]
[1749180026570,3.47387212,2434.5,2434.4,3.21396295]
[1749180026571,0.6854,2434.5,2434.4,3.21396295]
[1749180026872,0.6854,2434.5,2434.4,4.03519295]
[1749180027071,0.82117,2434.6,2434.4,4.03519295]
[1749180027271,0.82117,2434.6,2434.5,5.113]
[1749180027473,0.6854,2434.7,2434.5,5.113]
[1749180027772,0.82116,2434.6,2434.5,5.8084]
[1749180028073,0.6854,2434.7,2434.5,5.8084]
[1749180028367,1.50655,2434.7,2434.5,5.8084]
[1749180028974,1.50653,2434.7,2434.5,6.62957]
[1749180029169,1.50653,2434.7,2434.5,5.8084]
[1749180029571,0.82116,2434.6,2434.5,5.8084]
[1749180030170,0.6854,2434.7,2434.5,5.8084]
[1749180030373,1.50655,2434.7,2434.5,5.8084]
[1749180030879,1.50655,2434.7,2434.5,6.6296]
[1749180031473,0.6854,2434.7,2434.6,0.82116]
[1749180031679,0.738,2434.8,2434.7,0.82113]
[1749180031876,0.738,2434.8,2434.7,4.02893]
[1749180032480,0.738,2434.8,2434.7,3.2078]
[1749180033074,0.738,2434.8,2434.7,4.02893]
[1749180035081,0.738,2434.8,2434.7,5.39383]
[1749180036580,0.82103,2435.0,2434.7,4.02893]
[1749180036780,0.82103,2435.0,2434.8,0.82109]
[1749180036981,0.82103,2435.0,2434.9,5.104]
[1749180037575,1.48331,2435.1,2434.9,5.92506]
[1749180039585,1.48331,2435.1,2434.9,6.60426]
[1749180039982,0.82088,2435.5,2434.9,6.6912]
[1749180040182,0.82088,2435.5,2435.3,3.2078]
[1749180040483,0.82088,2435.5,2435.4,5.104]
[1749180040684,2.12506231,2435.5,2435.4,5.92487]
[1749180040885,1.30420231,2435.5,2435.4,5.92487]
[1749180041186,1.51484,2435.6,2435.4,6.57777]
[1749180041679,0.82084,2435.6,2435.4,6.57777]
[1749180041886,0.82086,2435.6,2435.4,6.57779]
[1749180042085,0.82086,2435.5,2435.4,5.7569]
[1749180042279,0.82085,2435.6,2435.4,6.57779]
[1749180042474,1.30473378,2435.5,2435.4,6.57779]
[1749180042986,0.82084,2435.6,2435.4,6.57779]
[1749180043484,0.6304,2435.7,2435.5,0.82086]
[1749180043485,1.45121,2435.7,2435.5,0.82086]
[1749180043686,1.30498232,2435.6,2435.5,0.82086]
[1749180044080,2.12581232,2435.6,2435.5,0.82086]
[1749180044388,2.12581232,2435.6,2435.4,6.57777]
[1749180044579,0.6304,2435.7,2435.4,6.57777]
[1749180044784,0.6322,2435.9,2435.6,3.2078]
[1749180044986,2.12543201,2435.8,2435.6,4.02862]
[1749180045187,0.82077,2435.8,2435.6,4.02862]
[1749180045989,2.15135,2435.9,2435.7,0.82079]
[1749180046190,1.51915,2435.9,2435.8,5.103]
[1749180046391,2.8240029,2435.9,2435.8,5.103]
[1749180047690,0.6446,2436.1,2435.8,5.103]
[1749180047890,0.82064,2436.2,2435.9,4.02851]
[1749180048086,1.30531819,2436.1,2435.9,4.70671]
[1749180048391,0.6446,2436.3,2435.9,3.886]
[1749180048692,2.82995,2436.5,2436.2,0.82062]
[1749180048991,2.12519936,2436.4,2436.3,5.103]
[1749180049492,0.82057,2436.4,2436.3,5.103]
[1749180049881,2.0094,2436.5,2435.8,0.82075]
[1749180050085,0.82066,2436.1,2435.9,5.103]
[1749180050290,0.82065,2436.2,2435.9,5.103]
[1749180050593,1.47245,2436.2,2436.0,0.82069]
[1749180050792,0.6518,2436.2,2436.0,0.82069]
[1749180050991,0.6518,2436.2,2436.1,1.47646]
[1749180051189,0.6518,2436.2,2436.1,0.6558]
[1749180051595,1.47242,2436.2,2436.1,0.6558]
[1749180052687,0.82057,2436.4,2436.1,0.6558]
[1749180052894,0.6421,2436.4,2436.1,1.47645]
[1749180053296,0.82062,2436.2,2436.1,0.6558]
[1749180053490,0.82068,2436.1,2435.9,4.0285]
[1749180053695,0.82064,2436.2,2436.0,5.102]
[1749180054007,0.82064,2436.2,2436.0,5.92268]
[1749180054595,0.6421,2436.4,2436.1,0.82066]
[1749180054898,0.8206,2436.3,2436.1,0.82066]
[1749180055397,0.6421,2436.4,2436.0,7.25707]
[1749180055591,0.82064,2436.2,2436.0,5.92267]
[1749180056498,1.3885,2436.3,2435.9,3.8864]
[1749180056692,1.48912,2436.2,2436.1,5.102]
[1749180056894,2.8306,2436.2,2435.9,3.2078]
[1749180057096,3.65122,2436.2,2436.1,5.102]
[1749180057495,3.65122,2436.2,2435.7,1.34276295]
[1749180057496,0.82076,2435.8,2435.7,1.34276295]
[1749180057799,0.82076,2435.8,2435.7,0.00616295]
[1749180057988,0.82076,2435.8,2435.7,5.10816295]
[1749180058590,0.6679,2435.9,2435.7,0.00616295]
[1749180058795,0.82076,2435.8,2435.7,5.10816295]
[1749180059899,1.48865,2435.9,2435.7,5.78596295]
[1749180060100,2.22605,2435.9,2435.7,5.78596295]
[1749180060294,0.82076,2435.8,2435.7,5.78596295]
[1749180060501,2.22604,2435.9,2435.7,6.60675295]
[1749180060695,0.82076,2435.8,2435.7,5.78596295]
[1749180061791,2.22605,2435.9,2435.7,9.81455295]
[1749180062599,0.82076,2435.8,2435.7,8.99376295]
[1749180062903,0.82076,2435.8,2435.7,9.65316295]
[1749180063404,1.4053,2435.9,2435.7,9.65316295]
[1749180063596,0.82076,2435.8,2435.7,9.65316295]
[1749180063798,2.22605,2435.9,2435.7,9.65316295]
[1749180063996,0.7374,2435.9,2435.8,0.82076]
[1749180064700,0.7374,2435.9,2435.8,2.15666]
[1749180067401,2.1621,2436.2,2436.1,0.82066]
[1749180067600,2.1621,2436.2,2436.1,9.12146]
[1749180068201,2.05081,2437.1,2436.4,0.82054]
[1749180068400,2.64775577,2437.0,2436.5,5.7403]
[1749180068599,0.82049,2436.6,2436.5,5.7403]
[1749180069402,1.3443,2437.0,2436.5,5.7403]
[1749180069706,0.82047,2436.7,2436.5,5.7403]
[1749180070007,0.82049,2436.6,2436.5,5.7403]
[1749180070305,1.3443,2437.0,2436.5,5.7403]
[1749180070604,2.64040421,2436.9,2436.5,5.7403]
[1749180070803,2.64040421,2436.9,2436.6,5.092]
[1749180070804,1.30460421,2436.8,2436.6,5.092]
[1749180071005,2.64040421,2436.8,2436.6,5.092]
[1749180071307,2.12506421,2436.7,2436.6,5.092]
[1749180071805,1.3443,2437.0,2436.6,5.91249]
[1749180072006,0.82043,2436.8,2436.6,5.91249]
[1749180072305,0.82046,2436.7,2436.6,5.092]
[1749180072608,0.82046,2436.7,2436.6,5.91249]
[1749180072801,0.82046,2436.7,2436.6,5.092]
[1749180073303,0.82044,2436.8,2436.6,5.91247]
[1749180075310,1.3358,2436.9,2436.6,5.91247]
[1749180075502,0.82044,2436.8,2436.6,5.092]
[1749180075702,0.82044,2436.8,2436.6,5.91248]
[1749180077311,1.3358,2436.9,2436.7,5.092]
[1749180077511,2.12372545,2436.8,2436.7,5.092]
[1749180077712,2.12388354,2436.8,2436.7,5.092]
[1749180077915,0.82042,2436.8,2436.7,5.092]
[1749180079214,0.82047,2436.7,2436.5,0.8205]
[1749180079407,1.5131,2436.6,2436.4,4.02834]
[1749180079611,0.6926,2436.6,2436.5,0.82052]
[1749180079910,0.6926,2436.6,2436.5,5.91252]
[1749180080111,0.6926,2436.6,2436.5,5.092]
[1749180080313,0.6926,2436.6,2436.5,5.91252]
[1749180082716,0.82046,2436.7,2436.5,5.91251]
[1749180083416,0.82046,2436.7,2436.5,0.82051]
[1749180083609,0.82046,2436.7,2436.6,5.091]
[1749180083812,0.6817,2437.0,2436.6,5.091]
[1749180084113,0.6959,2437.1,2436.9,3.2078]
[1749180084417,0.82035,2437.0,2436.9,3.2078]
[1749180084611,0.82035,2437.0,2436.9,8.2988]
[1749180085208,0.82035,2437.0,2436.9,3.2078]
[1749180085416,0.82035,2437.0,2436.9,8.2988]
[1749180086611,0.82035,2437.0,2436.9,3.2078]
[1749180086816,0.82035,2437.0,2436.9,8.2988]
[1749180087314,0.6892,2437.4,2436.9,8.2988]
[1749180087515,2.17012,2437.4,2437.3,3.2078]
[1749180087709,0.17103236,2437.5,2437.3,3.2078]
[1749180087710,0.17103236,2437.5,2437.3,8.2988]
[1749180087911,0.17103236,2437.5,2437.4,0.82022]
[1749180089513,0.17103236,2437.5,2437.3,0.82025]
[1749180089711,1.48562,2437.4,2437.3,5.091]
[1749180090209,0.6654,2437.4,2437.3,5.091]
[1749180090407,1.48562,2437.4,2437.3,5.091]
[1749180091412,0.6654,2437.4,2437.3,5.091]
[1749180092213,0.6654,2437.4,2437.3,5.91125]
[1749180092412,0.17103236,2437.5,2437.3,9.11905]
[1749180092609,0.17103236,2437.5,2437.4,0.82022]
[1749180093517,5.25776,2438.2,2437.4,0.82022]
[1749180093518,3.9046,2438.8,2437.7,2.05031]
[1749180093715,1.29444568,2438.7,2438.2,3.2078]
[1749180093925,1.29444568,2438.7,2438.5,4.02765]
[1749180093926,0.8198,2438.7,2438.5,4.02765]
[1749180094216,0.8198,2438.7,2438.5,9.11765]
[1749180094517,1.9761,2438.8,2438.4,5.09616295]
[1749180094518,5.1839,2438.8,2438.4,5.09616295]
[1749180094714,0.81985,2438.5,2438.4,5.09616295]
[1749180095110,0.81985,2438.5,2438.4,0.00616295]
[1749180095513,1.3976,2438.6,2438.4,0.00616295]
[1749180095713,0.8198,2438.7,2438.4,0.00616295]
[1749180096013,2.11350545,2438.6,2438.5,3.2078]
[1749180099012,1.29368545,2438.6,2438.5,4.02765]
[1749180099216,0.6968,2438.8,2438.5,5.8689]
[1749180099411,0.8198,2438.7,2438.6,5.081]
[1749180099620,0.6968,2438.8,2438.6,5.081]
[1749180099818,0.81978,2438.7,2438.6,5.081]
[1749180100218,1.51657,2438.8,2438.6,5.081]
[1749180100413,0.6893,2439.0,2438.6,5.081]
[1749180100618,0.81978,2438.8,2438.6,5.081]
[1749180101022,0.81978,2438.7,2438.6,5.081]
[1749180101226,0.81977,2438.8,2438.6,5.081]
[1749180101421,0.81978,2438.7,2438.6,5.081]
[1749180101928,0.81974,2438.9,2438.6,5.081]
[1749180102121,0.81973,2438.9,2438.6,7.25911]
[1749180102323,0.81974,2438.9,2438.6,7.25911]
[1749180102522,0.81977,2438.8,2438.6,6.4393]
[1749180102823,0.81977,2438.8,2438.6,7.25911]
[1749180103219,0.81978,2438.7,2438.6,5.081]
[1749180105823,4.4919,2439.1,2438.5,4.493]
[1749180106125,0.81985,2438.5,2438.4,5.08616295]
[1749180109026,0.81985,2438.5,2438.4,0.00616295]
[1749180109225,0.81985,2438.5,2438.4,5.08616295]
[1749180112031,0.81985,2438.5,2438.4,0.00616295]
[1749180113733,4.02765,2438.5,2438.4,0.00616295]
[1749180114035,5.32074437,2438.5,2438.4,0.00616295]
[1749180114437,0.82002,2438.0,2437.9,24.816]
[1749180114735,0.82002,2438.0,2437.9,29.896]
[1749180115836,0.82002,2438.0,2437.9,24.816]
[1749180116031,0.82002,2438.0,2437.9,29.896]
[1749180116331,0.81999,2438.1,2437.9,29.896]
[1749180116533,0.00616295,2438.2,2438.1,0.81998]
[1749180117238,0.00616295,2438.2,2438.1,1.45398]
[1749180117438,0.00616295,2438.2,2438.1,0.634]
[1749180117640,0.00616295,2438.2,2438.1,6.53398]
[1749180122141,0.6949,2438.8,2438.1,10.714]
[1749180122344,1.29813383,2438.7,2438.6,4.02762]
[1749180122533,0.8197,2439.0,2438.6,8.2868]
[1749180122735,1.29879255,2438.9,2438.7,1.46916]
[1749180122937,1.29879255,2438.8,2438.7,1.46916]
[1749180123242,1.29879255,2438.8,2438.7,0.6494]
[1749180123533,2.11854255,2438.8,2438.7,0.6494]
[1749180123738,0.81978,2438.7,2438.6,8.2868]
[1749180123938,1.95709255,2438.7,2438.6,5.079]
[1749180124138,1.29879255,2438.7,2438.6,5.89882]
[1749180124339,1.29997024,2438.8,2438.7,0.81978]
[1749180124540,1.29993259,2438.8,2438.7,0.81978]
[1749180124738,1.29993259,2438.8,2438.7,1.47698]
[1749180125135,2.11969259,2438.8,2438.6,8.2868]
[1749180125334,1.29993259,2438.7,2438.6,8.2868]
[1749180125736,2.11971259,2438.7,2438.6,8.2868]
[1749180126246,1.29993259,2438.7,2438.6,8.2868]
[1749180126441,1.29993259,2438.7,2438.4,0.6467]
[1749180126743,0.81985,2438.5,2438.4,5.7217]
[1749180127139,0.81985,2438.5,2438.4,5.075]
[1749180127445,3.51495233,2438.5,2438.4,5.075]
[1749180127640,2.11985233,2438.5,2438.4,5.075]
[1749180127848,1.30000233,2438.5,2438.4,5.7131]
[1749180128341,1.30000233,2438.5,2438.3,3.2078]
[1749180128537,0.82002,2438.0,2437.9,3.2078]
[1749180128743,0.82005,2437.9,2437.8,5.075]
[1749180128942,2.12024055,2437.9,2437.8,5.075]
[1749180130931,1.30019055,2437.9,2437.8,5.075]
[1749180131130,2.12024055,2437.9,2437.8,5.075]
[1749180132142,0.82009,2437.8,2437.7,0.00616295]
[1749180132344,5.27647055,2437.8,2437.1,3.2078]
[1749180132545,0.82025,2437.3,2437.2,5.076]
[1749180132843,0.82029,2437.2,2437.1,5.076]
[1749180136643,2.10579,2437.2,2437.1,5.076]
[1749180136845,0.82029,2437.2,2437.1,5.076]
[1749180137138,0.82029,2437.2,2436.7,3.2078]
[1749180137139,2.05098,2436.9,2436.0,3.2078]
[1749180137341,0.82057,2436.4,2436.1,6.53814]
[1749180137542,1.95739909,2436.8,2436.1,6.53814]
[1749180137543,0.82052,2436.6,2436.2,0.82062]
[1749180137741,0.82047,2436.7,2436.1,7.0641]
[1749180137942,2.12007,2436.7,2436.1,7.0641]
[1749180138145,0.8205,2436.6,2436.3,0.82057]
[1749180138450,0.8205,2436.6,2436.4,5.077]
[1749180138748,0.82052,2436.5,2436.4,5.077]
[1749180140141,0.82051,2436.6,2436.4,5.077]
[1749180140544,0.82049,2436.6,2436.4,5.077]
[1749180140749,0.82049,2436.6,2436.4,5.89755]
[1749180140941,0.82048,2436.7,2436.4,5.89755]
[1749180141243,0.8205,2436.6,2436.4,5.077]
[1749180141644,0.82052,2436.5,2436.4,5.077]
[1749180143536,0.82059,2436.3,2436.2,0.00616295]
[1749180143740,0.82059,2436.3,2436.2,5.08416295]
[1749180146250,0.82057,2436.4,2436.2,5.90478295]
[1749180146751,0.82056,2436.4,2436.2,5.90477295]
[1749180147050,3.2078,2436.6,2436.2,5.08416295]
[1749180147241,4.02831,2436.6,2436.4,0.82053]
[1749180147442,0.82052,2436.5,2436.3,2.15667]
[1749180147846,4.02831,2436.6,2436.4,0.82056]
[1749180148449,4.02831,2436.6,2436.3,1.3361]
[1749180148450,3.2078,2436.6,2436.5,0.82052]
[1749180148648,3.2078,2437.7,2436.5,2.05132]
[1749180148849,0.82638295,2437.4,2437.3,3.2078]
[1749180150350,0.00616295,2437.4,2437.3,3.2078]
[1749180151647,0.82638295,2437.4,2437.3,3.2078]
[1749180152250,0.00616295,2437.4,2437.3,3.2078]
[1749180152452,0.82638295,2437.4,2437.3,3.2078]
[1749180152958,16.40743104,2441.1,2437.4,0.82022]
[1749180152959,5.66295741,2438.9,2437.4,0.82022]
[1749180153154,0.81988,2438.4,2438.3,3.2078]
[1749180153650,0.81983,2438.6,2438.3,3.2078]
[1749180153854,2.12853,2438.6,2438.3,3.2078]
[1749180154058,1.3087,2438.6,2438.3,4.02771]
[1749180154355,2.12853,2438.6,2438.3,3.2078]
[1749180155555,2.12853,2438.6,2438.3,4.02771]
[1749180155753,2.12853,2438.6,2438.3,3.2078]
[1749180156754,2.12853,2438.6,2438.3,4.02772]
[1749180156966,2.12853,2438.6,2438.3,3.2078]
[1749180157259,0.68746295,2438.7,2438.4,0.81987]
[1749180157260,0.82594295,2438.7,2438.4,0.81987]
[1749180157857,0.00616295,2438.7,2438.3,3.2078]
[1749180158057,0.00616295,2438.7,2438.6,4.02762]
[1749180158250,0.00616295,2438.7,2438.6,9.10162]
[1749180161263,0.00616295,2438.7,2438.6,3.2078]
[1749180161469,0.00616295,2438.7,2438.6,8.2808]
[1749180161961,0.00616295,2438.7,2438.6,9.10062]
[1749180165362,0.00616295,2438.7,2438.6,10.40002]
[1749180165763,0.00616295,2438.7,2438.6,9.09962]
[1749180166065,0.00616295,2438.7,2438.6,10.39902]
[1749180168459,0.00616295,2438.7,2438.6,9.09962]
[1749180169370,0.81983,2438.6,2438.4,9.09968]
[1749180169666,0.81983,2438.6,2438.4,8.2798]
[1749180169865,1.45833,2438.6,2438.4,8.2798]
[1749180170059,0.81985,2438.5,2438.4,8.2798]
[1749180171770,1.45832,2438.6,2438.4,8.2798]
[1749180171968,0.00616295,2438.7,2438.4,8.2798]
[1749180172163,0.00616295,2438.7,2438.6,0.81982]
[1749180172563,0.00616295,2438.7,2438.6,2.17152]
[1749180173073,0.00616295,2438.7,2438.6,2.82972]
[1749180176670,0.6613,2439.2,2438.6,2.0099]
[1749180176873,0.6613,2439.2,2439.1,4.02745]
[1749180177172,0.6613,2439.2,2439.1,9.09845]
[1749180178676,1.48092,2439.2,2439.1,8.2788]
[1749180179176,0.6613,2439.2,2439.1,8.2788]
[1749180179479,1.48092,2439.2,2439.1,8.2788]
[1749180180473,2.78193152,2439.2,2439.1,8.2788]
[1749180180671,1.48092,2439.2,2439.1,3.2078]
[1749180180873,2.78197936,2439.2,2439.1,3.2078]
[1749180182275,1.96235936,2439.2,2439.1,4.02745]
[1749180182478,2.78197936,2439.2,2439.1,3.2078]
[1749180182673,1.96235936,2439.2,2439.1,4.02745]
[1749180183675,2.78197936,2439.2,2439.1,3.2078]
[1749180183976,1.96235936,2439.2,2439.1,3.2078]
[1749180184375,1.96235936,2439.2,2439.1,4.02745]
[1749180184677,1.96235936,2439.2,2439.1,3.2078]
[1749180185375,1.96235936,2439.2,2439.1,8.2788]
[1749180185576,1.30105936,2439.2,2439.1,9.09845]
[1749180187075,0.689,2439.5,2439.4,0.81955]
[1749180187277,1.99187976,2439.5,2439.4,4.02735]
[1749180187676,8.95040086,2440.7,2439.4,33.32955822]
[1749180187880,22.97040345,2443.8,2439.4,33.32955822]
[1749180187881,0.41555629,2443.5,2440.7,2.04776]
[1749180188179,3.2078,2444.8,2443.3,3.2078]
[1749180188470,5.74980962,2444.7,2444.3,3.17459759]
[1749180188675,3.2078,2445.0,2444.5,3.17459759]
[1749180188870,24.795,2445.2,2444.8,3.17459759]
[1749180189071,24.795,2445.2,2445.0,3.2078]
[1749180189270,30.6126,2445.2,2445.1,0.79768123]
[1749180189474,5.668,2445.1,2444.7,6.33466197]
[1749180189678,5.668,2445.1,2445.0,3.2078]
[1749180190177,10.668,2445.1,2445.0,3.2078]
[1749180190372,10.668,2445.1,2444.4,5.57153431]
[1749180190674,6.48564,2445.1,2445.0,3.11485689]
[1749180190871,24.795,2445.2,2444.6,3.2078]
[1749180191175,4.02547,2445.0,2444.9,3.11458187]
[1749180191476,5.664,2445.0,2444.9,3.11458187]
[1749180191676,11.48167,2445.0,2444.9,3.11458187]
[1749180191978,5.81767,2445.0,2444.9,3.11458187]
[1749180192277,0.8177,2444.9,2444.8,3.11458187]
[1749180192477,0.8177,2444.9,2444.3,3.2078]
[1749180192678,5.664,2444.8,2444.7,3.09898144]
[1749180192875,10.2649,2444.8,2444.0,5.57153431]
[1749180193183,5.664,2444.7,2444.1,3.2078]
[1749180193374,7.0571,2444.6,2444.1,0.81797]
[1749180193677,1.3931,2444.6,2444.5,3.2078]
[1749180194275,7.0571,2444.6,2444.5,3.2078]
[1749180194574,0.81789,2444.4,2444.2,3.2078]
[1749180194779,1.3018,2444.3,2444.2,3.2078]
[1749180195275,1.3018,2444.3,2443.9,3.2078]
[1749180195471,1.3018,2444.3,2443.8,0.00613522]
[1749180195472,0.81804,2443.9,2443.8,0.00613522]
[1749180195672,0.81814,2443.6,2443.5,3.2078]
[1749180195873,6.48014,2443.6,2443.5,3.2078]
[1749180196273,6.48014,2443.6,2443.5,5.52562824]
[1749180197476,11.48014,2443.6,2443.5,3.2078]
[1749180197679,0.81821,2443.4,2443.3,0.00613522]
[1749180197878,0.81821,2443.4,2443.3,2.32396346]
[1749180198177,5.81821,2443.4,2443.3,2.32396346]
[1749180198483,0.81821,2443.4,2443.3,2.32396346]
[1749180199268,0.81821,2443.4,2443.3,0.00613522]
[1749180199477,0.81821,2443.4,2443.3,1.55078698]
[1749180199775,0.00604279,2443.8,2443.3,0.00613522]
[1749180199980,0.00604279,2443.8,2443.7,3.2078]
[1749180200278,0.00604279,2443.8,2443.7,4.02591]
[1749180201377,0.00604279,2443.8,2443.7,5.6624993]
[1749180202180,0.00604279,2443.8,2443.7,4.8443893]
[1749180202985,0.00604279,2443.8,2443.7,7.93094041]
[1749180203684,0.82411279,2443.8,2443.7,7.16094606]
[1749180203886,2.20891279,2443.8,2443.7,7.16094606]
[1749180204280,2.20891279,2443.8,2443.7,6.38919385]
[1749180204483,2.20891279,2443.8,2443.7,4.8443893]
[1749180205178,2.20891279,2443.8,2443.7,6.3898029]
[1749180206283,2.20891279,2443.8,2443.7,4.8443893]
[1749180206778,2.20891279,2443.8,2443.7,1.04399729]
[1749180206779,7.20891279,2443.8,2443.7,1.04399729]